[Event "Early-Titled-Tuesday-Blitz-September-05-2023"]
[Site "Chess.com"]
[Date "2023.09.05"]
[Round "4"]
[White "Iball95"]
[Black "tteshan"]
[Result "1-0"]
[WhiteElo "2816"]
[BlackElo "2563"]
[TimeControl "180+1"]
[EndTime "8:38:26 PDT"]
[Termination "Iball95 won by resignation"]

1. e4 {[%clk 0:01:53.9]} 1... c5 {[%clk 0:02:55.6]} 2. Nc3 {[%clk 0:01:54.5]}
2... Nc6 {[%clk 0:02:55.8]} 3. Nf3 {[%clk 0:01:55.1]} 3... e6 {[%clk 0:02:55.3]}
4. d4 {[%clk 0:01:55]} 4... cxd4 {[%clk 0:02:56.2]} 5. Nxd4 {[%clk 0:01:55.5]}
5... a6 {[%clk 0:02:56.4]} 6. Nxc6 {[%clk 0:01:55.2]} 6... bxc6 {[%clk
0:02:56.4]} 7. Qf3 {[%clk 0:01:52.7]} 7... Qc7 {[%clk 0:02:50.6]} 8. Qg3 {[%clk
0:01:48.5]} 8... Qxg3 {[%clk 0:02:50.6]} 9. hxg3 {[%clk 0:01:49.4]} 9... Nf6
{[%clk 0:02:50.8]} 10. Bd3 {[%clk 0:01:49]} 10... d5 {[%clk 0:02:48.4]} 11. Bd2
{[%clk 0:01:49.5]} 11... Bc5 {[%clk 0:02:38.1]} 12. f3 {[%clk 0:01:46.2]} 12...
Bb7 {[%clk 0:02:30]} 13. O-O-O {[%clk 0:01:45.8]} 13... Ke7 {[%clk 0:02:19.9]}
14. g4 {[%clk 0:01:45.2]} 14... h6 {[%clk 0:02:17.6]} 15. Rhe1 {[%clk
0:01:42.7]} 15... Rhd8 {[%clk 0:02:08.8]} 16. Na4 {[%clk 0:01:33.6]} 16... Ba7
{[%clk 0:01:47.3]} 17. g5 {[%clk 0:01:03.7]} 17... hxg5 {[%clk 0:01:45]} 18. e5
{[%clk 0:01:04.2]} 18... Nd7 {[%clk 0:01:35]} 19. Bxg5+ {[%clk 0:01:04.7]} 19...
f6 {[%clk 0:01:34.9]} 20. exf6+ {[%clk 0:01:04.2]} 20... gxf6 {[%clk 0:01:34.3]}
21. Bd2 {[%clk 0:01:03.5]} 21... Kf7 {[%clk 0:01:30.1]} 22. Rh1 {[%clk
0:01:02.1]} 22... Rh8 {[%clk 0:01:28.5]} 23. b3 {[%clk 0:01:01.5]} 23... Ne5
{[%clk 0:01:16.8]} 24. Be2 {[%clk 0:01:00.9]} 24... c5 {[%clk 0:01:13.1]} 25.
Nb2 {[%clk 0:00:57.8]} 25... Bb6 {[%clk 0:01:09.8]} 26. Nd3 {[%clk 0:00:56.2]}
26... Nxd3+ {[%clk 0:01:07.8]} 27. Bxd3 {[%clk 0:00:57.1]} 27... Bc6 {[%clk
0:00:58.5]} 28. Rxh8 {[%clk 0:00:50.9]} 28... Rxh8 {[%clk 0:00:58.5]} 29. Bxa6
{[%clk 0:00:49.4]} 29... Ra8 {[%clk 0:00:59]} 30. Bd3 {[%clk 0:00:49]} 30...
Rxa2 {[%clk 0:00:57.5]} 31. Kb1 {[%clk 0:00:49.5]} 31... Ra8 {[%clk 0:00:56.7]}
32. Rh1 {[%clk 0:00:50.1]} 32... Rg8 {[%clk 0:00:55.6]} 33. g4 {[%clk
0:00:45.6]} 33... Bc7 {[%clk 0:00:51.4]} 34. Rh7+ {[%clk 0:00:44]} 34... Rg7
{[%clk 0:00:51.5]} 35. Rh8 {[%clk 0:00:44.7]} 35... Rg8 {[%clk 0:00:48.6]} 36.
Rh7+ {[%clk 0:00:45.1]} 36... Rg7 {[%clk 0:00:48.9]} 37. Rh8 {[%clk 0:00:45]}
37... Rg8 {[%clk 0:00:49]} 38. Rh6 {[%clk 0:00:45.6]} 38... Be5 {[%clk
0:00:45.9]} 39. c3 {[%clk 0:00:41.8]} 39... c4 {[%clk 0:00:33.9]} 40. bxc4
{[%clk 0:00:32.1]} 40... dxc4 {[%clk 0:00:33.5]} 41. Bxc4 {[%clk 0:00:33]} 41...
Bxf3 {[%clk 0:00:26.4]} 42. Rh7+ {[%clk 0:00:33.3]} 42... Kg6 {[%clk 0:00:25.6]}
43. Bd3+ {[%clk 0:00:29.9]} 43... f5 {[%clk 0:00:25]} 44. Rh6+ {[%clk
0:00:30.1]} 44... Kf7 {[%clk 0:00:23.5]} 45. gxf5 {[%clk 0:00:29.4]} 45... exf5
{[%clk 0:00:23.4]} 46. Bc4+ {[%clk 0:00:29.2]} 46... Kg7 {[%clk 0:00:17.9]} 47.
Bxg8 {[%clk 0:00:29.5]} 47... Kxg8 {[%clk 0:00:18.8]} 48. Re6 {[%clk 0:00:22.6]}
48... Be4+ {[%clk 0:00:18.6]} 49. Kb2 {[%clk 0:00:21.4]} 49... Bg7 {[%clk
0:00:17.7]} 50. Bf4 {[%clk 0:00:20.1]} 50... Kf7 {[%clk 0:00:17.7]} 51. Rb6
{[%clk 0:00:19.8]} 51... Bf6 {[%clk 0:00:16.3]} 52. Kb3 {[%clk 0:00:18.9]} 52...
Ke7 {[%clk 0:00:14.6]} 53. c4 {[%clk 0:00:17.9]} 53... Bd4 {[%clk 0:00:13.2]}
54. Rh6 {[%clk 0:00:14.6]} 54... Kd7 {[%clk 0:00:13.2]} 55. Rd6+ {[%clk
0:00:14.3]} 1-0

[Event "Early-Titled-Tuesday-Blitz-September-05-2023"]
[Site "Chess.com"]
[Date "2023.09.05"]
[Round "4"]
[White "zverr1"]
[Black "vedantgoswami"]
[Result "1/2-1/2"]
[WhiteElo "2485"]
[BlackElo "2313"]
[TimeControl "180+1"]
[EndTime "8:38:30 PDT"]
[Termination "Game drawn by repetition"]

1. d4 {[%clk 0:03:00.9]} 1... Nf6 {[%clk 0:02:59.7]} 2. c4 {[%clk 0:03:00]} 2...
e6 {[%clk 0:03:00.2]} 3. Nf3 {[%clk 0:03:00.1]} 3... Bb4+ {[%clk 0:03:00.6]} 4.
Bd2 {[%clk 0:02:59.7]} 4... Qe7 {[%clk 0:03:00.5]} 5. e3 {[%clk 0:02:58]} 5...
b6 {[%clk 0:02:53.7]} 6. Bd3 {[%clk 0:02:56.7]} 6... Bb7 {[%clk 0:02:49.8]} 7.
O-O {[%clk 0:02:56.2]} 7... Bxd2 {[%clk 0:02:47.3]} 8. Nbxd2 {[%clk 0:02:25.3]}
8... O-O {[%clk 0:02:41.7]} 9. Qc2 {[%clk 0:02:25.7]} 9... d6 {[%clk 0:02:39.9]}
10. b4 {[%clk 0:02:23.6]} 10... Nbd7 {[%clk 0:02:36.1]} 11. a3 {[%clk
0:02:19.2]} 11... c5 {[%clk 0:02:34.6]} 12. dxc5 {[%clk 0:02:17.9]} 12... dxc5
{[%clk 0:02:26.4]} 13. b5 {[%clk 0:02:16.2]} 13... Rfd8 {[%clk 0:02:13.2]} 14.
Ne4 {[%clk 0:02:14.7]} 14... a5 {[%clk 0:01:59.1]} 15. bxa6 {[%clk 0:02:08.8]}
15... Rxa6 {[%clk 0:01:58.1]} 16. a4 {[%clk 0:02:07.6]} 16... Rda8 {[%clk
0:01:57.2]} 17. Nc3 {[%clk 0:01:57.1]} 17... Bxf3 {[%clk 0:01:50.9]} 18. gxf3
{[%clk 0:01:58]} 18... Ne5 {[%clk 0:01:50.8]} 19. f4 {[%clk 0:01:54.8]} 19...
Nf3+ {[%clk 0:01:17.2]} 20. Kg2 {[%clk 0:01:49.3]} 20... Qb7 {[%clk 0:01:16]}
21. Be4 {[%clk 0:01:49.5]} 21... Nxe4 {[%clk 0:01:13.3]} 22. Qxe4 {[%clk
0:01:47]} 22... Nh4+ {[%clk 0:01:02]} 23. Kh3 {[%clk 0:01:45.6]} 23... Qxe4
{[%clk 0:01:00]} 24. Nxe4 {[%clk 0:01:46.5]} 24... Nf5 {[%clk 0:00:59.6]} 25.
Nc3 {[%clk 0:01:35.5]} 25... Nd6 {[%clk 0:00:56.8]} 26. Rad1 {[%clk 0:01:28.1]}
26... Nxc4 {[%clk 0:00:56]} 27. Rd7 {[%clk 0:01:28.5]} 27... Nb2 {[%clk
0:00:53.1]} 28. Rb1 {[%clk 0:01:25.6]} 28... Nxa4 {[%clk 0:00:52.1]} 29. Nxa4
{[%clk 0:01:26.5]} 29... Rxa4 {[%clk 0:00:52.1]} 30. Rxb6 {[%clk 0:01:27.4]}
30... h6 {[%clk 0:00:45.1]} 31. Rbb7 {[%clk 0:01:25.9]} 31... Rf8 {[%clk
0:00:43.3]} 32. Rb5 {[%clk 0:01:22.1]} 32... Ra2 {[%clk 0:00:41.9]} 33. Kg3
{[%clk 0:01:21.3]} 33... Rc2 {[%clk 0:00:41.4]} 34. Rc7 {[%clk 0:01:21.7]} 34...
c4 {[%clk 0:00:41.4]} 35. Rbc5 {[%clk 0:01:22.4]} 35... Rb8 {[%clk 0:00:37.8]}
36. Rxc4 {[%clk 0:01:22.5]} 36... Rxc4 {[%clk 0:00:36.7]} 37. Rxc4 {[%clk
0:01:23.4]} 37... Rb7 {[%clk 0:00:26.2]} 38. Rc6 {[%clk 0:01:22.2]} 38... Kh7
{[%clk 0:00:23.7]} 39. Kg4 {[%clk 0:01:22]} 39... Rb4 {[%clk 0:00:19.7]} 40. Rc7
{[%clk 0:01:21]} 40... Kg6 {[%clk 0:00:19.1]} 41. Rc6 {[%clk 0:01:21.7]} 41...
Kf6 {[%clk 0:00:18.8]} 42. Kf3 {[%clk 0:01:21]} 42... g5 {[%clk 0:00:18.4]} 43.
fxg5+ {[%clk 0:01:15.7]} 43... hxg5 {[%clk 0:00:18.3]} 44. Rc5 {[%clk
0:01:15.4]} 44... Kg6 {[%clk 0:00:18]} 45. Kg3 {[%clk 0:01:15.2]} 45... Rb2
{[%clk 0:00:17.4]} 46. Rc8 {[%clk 0:01:14.7]} 46... Kg7 {[%clk 0:00:16]} 47. Rc5
{[%clk 0:01:14.4]} 47... Kg6 {[%clk 0:00:16]} 48. Ra5 {[%clk 0:01:15.2]} 48...
Rb1 {[%clk 0:00:15.5]} 49. Kg4 {[%clk 0:01:14.9]} 49... Rg1+ {[%clk 0:00:15]}
50. Kf3 {[%clk 0:01:15.6]} 50... g4+ {[%clk 0:00:14.9]} 51. Kf4 {[%clk
0:01:14.9]} 51... f6 {[%clk 0:00:15.1]} 52. Ra6 {[%clk 0:01:11.6]} 52... e5+
{[%clk 0:00:14.8]} 53. Ke4 {[%clk 0:01:11.7]} 53... Rg2 {[%clk 0:00:14.6]} 54.
f4 {[%clk 0:01:07.4]} 54... gxf3 {[%clk 0:00:13.9]} 55. Kxf3 {[%clk 0:01:08.3]}
55... Rxh2 {[%clk 0:00:14]} 56. Ra8 {[%clk 0:01:05.2]} 56... Rh3+ {[%clk
0:00:13.9]} 57. Ke4 {[%clk 0:01:04.6]} 57... Rh4+ {[%clk 0:00:13.6]} 58. Kf3
{[%clk 0:01:04.7]} 58... Kf5 {[%clk 0:00:13.9]} 59. Ra5 {[%clk 0:01:00.1]} 59...
Rh3+ {[%clk 0:00:13.4]} 60. Kf2 {[%clk 0:01:00.3]} 60... Rh2+ {[%clk 0:00:13.4]}
61. Kf3 {[%clk 0:01:00.1]} 61... Rh3+ {[%clk 0:00:13.6]} 62. Kf2 {[%clk
0:01:00.4]} 62... Rh4 {[%clk 0:00:13.5]} 63. Kf3 {[%clk 0:01:00.3]} 63... Rb4
{[%clk 0:00:13.3]} 64. Rc5 {[%clk 0:00:55.7]} 64... Ke6 {[%clk 0:00:13.1]} 65.
Rc6+ {[%clk 0:00:53.6]} 65... Kf7 {[%clk 0:00:13.3]} 66. Ra6 {[%clk 0:00:53]}
66... Kg6 {[%clk 0:00:13.8]} 67. Ra5 {[%clk 0:00:53.3]} 67... Kg5 {[%clk
0:00:13]} 68. Rc5 {[%clk 0:00:52.8]} 68... Kg6 {[%clk 0:00:10.7]} 69. Ra5 {[%clk
0:00:51.9]} 69... Rb3 {[%clk 0:00:10.7]} 70. Ke4 {[%clk 0:00:50.7]} 70... Rb4+
{[%clk 0:00:10.9]} 71. Kf3 {[%clk 0:00:51.2]} 1/2-1/2

[Event "Early-Titled-Tuesday-Blitz-September-05-2023"]
[Site "Chess.com"]
[Date "2023.09.05"]
[Round "4"]
[White "GeorgiosSouleidis"]
[Black "MrBad74"]
[Result "1/2-1/2"]
[WhiteElo "2532"]
[BlackElo "2347"]
[TimeControl "180+1"]
[EndTime "8:38:30 PDT"]
[Termination "Game drawn by repetition"]

1. e4 {[%clk 0:02:56.7]} 1... e6 {[%clk 0:02:59.9]} 2. d4 {[%clk 0:02:56.7]}
2... d5 {[%clk 0:03:00.1]} 3. Nc3 {[%clk 0:02:57.2]} 3... Bb4 {[%clk 0:02:58.2]}
4. Ne2 {[%clk 0:02:57]} 4... Nc6 {[%clk 0:02:57.3]} 5. a3 {[%clk 0:02:55.9]}
5... Ba5 {[%clk 0:02:57.3]} 6. b4 {[%clk 0:02:52.9]} 6... Bb6 {[%clk 0:02:57.1]}
7. exd5 {[%clk 0:02:51.6]} 7... exd5 {[%clk 0:02:56.3]} 8. Na4 {[%clk
0:02:52.3]} 8... Nge7 {[%clk 0:02:55.5]} 9. c3 {[%clk 0:02:52.5]} 9... Bf5
{[%clk 0:02:54.6]} 10. Ng3 {[%clk 0:02:52.2]} 10... Bg6 {[%clk 0:02:54.1]} 11.
h4 {[%clk 0:02:47.8]} 11... Nf5 {[%clk 0:02:34.6]} 12. Nxf5 {[%clk 0:02:39.5]}
12... Bxf5 {[%clk 0:02:34.3]} 13. h5 {[%clk 0:01:50.2]} 13... Qe7+ {[%clk
0:02:21.4]} 14. Qe2 {[%clk 0:01:36.1]} 14... h6 {[%clk 0:02:15.5]} 15. Bf4
{[%clk 0:01:31.2]} 15... O-O-O {[%clk 0:02:07.8]} 16. Qxe7 {[%clk 0:01:28.5]}
16... Nxe7 {[%clk 0:02:06.9]} 17. Be2 {[%clk 0:01:24.3]} 17... Rhe8 {[%clk
0:01:58.6]} 18. f3 {[%clk 0:01:14.9]} 18... c6 {[%clk 0:01:17.7]} 19. Nxb6+
{[%clk 0:01:14.5]} 19... axb6 {[%clk 0:01:17.6]} 20. Kf2 {[%clk 0:01:15.1]}
20... Kd7 {[%clk 0:01:11.3]} 21. g4 {[%clk 0:01:11.7]} 21... Be6 {[%clk
0:01:10.4]} 22. a4 {[%clk 0:01:07.6]} 22... Ra8 {[%clk 0:01:09.5]} 23. Bg3
{[%clk 0:01:04.4]} 23... Nc8 {[%clk 0:01:07.6]} 24. Bd3 {[%clk 0:00:37.8]} 24...
Nd6 {[%clk 0:01:02.8]} 25. Rhe1 {[%clk 0:00:37.6]} 25... f6 {[%clk 0:00:55.4]}
26. Bf4 {[%clk 0:00:36.9]} 26... Bf7 {[%clk 0:00:53.8]} 27. Rxe8 {[%clk
0:00:34.5]} 27... Bxe8 {[%clk 0:00:48.9]} 28. Bd2 {[%clk 0:00:31.6]} 28... Bf7
{[%clk 0:00:48.6]} 29. Kg3 {[%clk 0:00:31.8]} 29... Nc4 {[%clk 0:00:48.5]} 30.
Bxc4 {[%clk 0:00:31.7]} 30... dxc4 {[%clk 0:00:48.2]} 31. Kf2 {[%clk 0:00:30.2]}
31... Bd5 {[%clk 0:00:47.9]} 32. Be3 {[%clk 0:00:28.7]} 32... Re8 {[%clk
0:00:42.5]} 33. a5 {[%clk 0:00:27.9]} 33... Ra8 {[%clk 0:00:39.2]} 34. Bd2
{[%clk 0:00:26.5]} 34... bxa5 {[%clk 0:00:38.1]} 35. bxa5 {[%clk 0:00:26.7]}
35... Ra6 {[%clk 0:00:22.7]} 36. f4 {[%clk 0:00:22.9]} 36... Ra8 {[%clk
0:00:22.4]} 37. Rb1 {[%clk 0:00:19.6]} 37... Kc7 {[%clk 0:00:20.7]} 38. Ra1
{[%clk 0:00:19.9]} 38... Kd7 {[%clk 0:00:19.7]} 39. g5 {[%clk 0:00:18.7]} 39...
fxg5 {[%clk 0:00:18.8]} 40. fxg5 {[%clk 0:00:19.6]} 40... hxg5 {[%clk
0:00:18.1]} 41. Bxg5 {[%clk 0:00:20.2]} 41... Bf7 {[%clk 0:00:18]} 42. h6 {[%clk
0:00:19.9]} 42... gxh6 {[%clk 0:00:17.8]} 43. Bxh6 {[%clk 0:00:20.8]} 43... Bd5
{[%clk 0:00:18.1]} 44. Bf4 {[%clk 0:00:20.5]} 44... Rf8 {[%clk 0:00:17.2]} 45.
Ke3 {[%clk 0:00:20.6]} 45... Re8+ {[%clk 0:00:17.4]} 46. Be5 {[%clk 0:00:21]}
46... Rg8 {[%clk 0:00:16.9]} 47. Rf1 {[%clk 0:00:18.8]} 47... Ra8 {[%clk
0:00:09.7]} 48. Rg1 {[%clk 0:00:12.7]} 48... Rxa5 {[%clk 0:00:09.7]} 49. Rg7+
{[%clk 0:00:12.6]} 49... Ke6 {[%clk 0:00:09.9]} 50. Rxb7 {[%clk 0:00:12.2]}
50... Ra3 {[%clk 0:00:08.4]} 51. Kd2 {[%clk 0:00:12.4]} 51... Ra2+ {[%clk
0:00:08.6]} 52. Kc1 {[%clk 0:00:12.9]} 52... Ra1+ {[%clk 0:00:08.3]} 53. Kb2
{[%clk 0:00:12.8]} 53... Rf1 {[%clk 0:00:07.1]} 54. Rh7 {[%clk 0:00:12.4]} 54...
Rf2+ {[%clk 0:00:07.1]} 55. Kc1 {[%clk 0:00:12.8]} 55... Rf3 {[%clk 0:00:06.9]}
56. Rh6+ {[%clk 0:00:11.1]} 56... Kd7 {[%clk 0:00:06.3]} 57. Rh7+ {[%clk
0:00:10.7]} 57... Ke6 {[%clk 0:00:06.3]} 58. Rh6+ {[%clk 0:00:10.6]} 58... Kd7
{[%clk 0:00:06.5]} 59. Rh7+ {[%clk 0:00:11.1]} 59... Ke6 {[%clk 0:00:06.7]}
1/2-1/2

[Event "Early-Titled-Tuesday-Blitz-September-05-2023"]
[Site "Chess.com"]
[Date "2023.09.05"]
[Round "4"]
[White "OlaaLa"]
[Black "benny_aizenberg"]
[Result "0-1"]
[WhiteElo "2431"]
[BlackElo "2662"]
[TimeControl "180+1"]
[EndTime "8:38:33 PDT"]
[Termination "benny_aizenberg won by checkmate"]

1. Nf3 {[%clk 0:03:00.9]} 1... Nf6 {[%clk 0:02:51.6]} 2. g3 {[%clk 0:03:01.1]}
2... c5 {[%clk 0:02:49.6]} 3. Bg2 {[%clk 0:03:01.4]} 3... Nc6 {[%clk 0:02:47.8]}
4. O-O {[%clk 0:03:01.2]} 4... g6 {[%clk 0:02:47.2]} 5. c4 {[%clk 0:03:01.6]}
5... Bg7 {[%clk 0:02:40.3]} 6. Nc3 {[%clk 0:03:01.3]} 6... O-O {[%clk
0:02:38.9]} 7. e3 {[%clk 0:02:55]} 7... e5 {[%clk 0:02:14.9]} 8. d4 {[%clk
0:02:50.7]} 8... cxd4 {[%clk 0:02:06]} 9. exd4 {[%clk 0:02:51]} 9... e4 {[%clk
0:02:00]} 10. Ne5 {[%clk 0:02:27.5]} 10... Re8 {[%clk 0:01:52.7]} 11. f4 {[%clk
0:02:12.3]} 11... exf3 {[%clk 0:01:47]} 12. Nxf3 {[%clk 0:02:12.4]} 12... d5
{[%clk 0:01:44.5]} 13. c5 {[%clk 0:02:02.7]} 13... Ne4 {[%clk 0:01:40.3]} 14.
Ne2 {[%clk 0:01:35.9]} 14... Bg4 {[%clk 0:01:33.4]} 15. h3 {[%clk 0:01:35.9]}
15... Bxf3 {[%clk 0:01:30.5]} 16. Rxf3 {[%clk 0:01:25.9]} 16... Ng5 {[%clk
0:01:13.2]} 17. Rd3 {[%clk 0:01:17.8]} 17... Qe7 {[%clk 0:00:51.4]} 18. Bxg5
{[%clk 0:01:12.4]} 18... Qxg5 {[%clk 0:00:46.8]} 19. Nf4 {[%clk 0:01:00.2]}
19... Rad8 {[%clk 0:00:20.2]} 20. Qa4 {[%clk 0:00:48.3]} 20... Re4 {[%clk
0:00:15.6]} 21. Rad1 {[%clk 0:00:42.7]} 21... h5 {[%clk 0:00:09.1]} 22. h4
{[%clk 0:00:41.8]} 22... Qg4 {[%clk 0:00:09.3]} 23. Bh3 {[%clk 0:00:17.3]} 23...
Rxf4 {[%clk 0:00:08.9]} 24. Bxg4 {[%clk 0:00:17.6]} 24... Rxg4 {[%clk
0:00:09.4]} 25. Qc2 {[%clk 0:00:16.1]} 25... Nxd4 {[%clk 0:00:08.9]} 26. Qf2
{[%clk 0:00:16.3]} 26... Nf5 {[%clk 0:00:08.7]} 27. Kh2 {[%clk 0:00:15.8]} 27...
d4 {[%clk 0:00:07.9]} 28. b4 {[%clk 0:00:14.3]} 28... Be5 {[%clk 0:00:07.4]} 29.
Kh3 {[%clk 0:00:14.8]} 29... Bxg3 {[%clk 0:00:06.8]} 30. Qxf5 {[%clk 0:00:10.5]}
30... gxf5 {[%clk 0:00:04.9]} 31. Rxg3 {[%clk 0:00:10.8]} 31... Kg7 {[%clk
0:00:05.2]} 32. Rf3 {[%clk 0:00:10.8]} 32... Kf6 {[%clk 0:00:05.5]} 33. b5
{[%clk 0:00:11.3]} 33... Rd5 {[%clk 0:00:04.9]} 34. c6 {[%clk 0:00:11.4]} 34...
Rxb5 {[%clk 0:00:05.3]} 35. c7 {[%clk 0:00:10.4]} 35... Rc5 {[%clk 0:00:05.8]}
36. Rdf1 {[%clk 0:00:10]} 36... Rxc7 {[%clk 0:00:04.2]} 37. Rxf5+ {[%clk
0:00:10.3]} 37... Kg6 {[%clk 0:00:04.7]} 38. Rd5 {[%clk 0:00:10.7]} 38... f6
{[%clk 0:00:04.2]} 39. Rd1 {[%clk 0:00:05.1]} 39... Rc3+ {[%clk 0:00:04.1]} 40.
Kh2 {[%clk 0:00:05.6]} 40... Rxh4+ {[%clk 0:00:04.9]} 41. Kg2 {[%clk 0:00:06.2]}
41... Rg4+ {[%clk 0:00:05.7]} 42. Kf2 {[%clk 0:00:06.7]} 42... Rc2+ {[%clk
0:00:05.7]} 43. Kf3 {[%clk 0:00:07.1]} 43... Rxa2 {[%clk 0:00:06.6]} 44. Rd7
{[%clk 0:00:07]} 44... Ra3+ {[%clk 0:00:06.8]} 45. Kf2 {[%clk 0:00:07]} 45...
Rb3 {[%clk 0:00:07.4]} 46. Rd8 {[%clk 0:00:06.5]} 46... a5 {[%clk 0:00:07.3]}
47. Rg8+ {[%clk 0:00:06.3]} 47... Kf5 {[%clk 0:00:07.7]} 48. Ra8 {[%clk
0:00:06.5]} 48... b6 {[%clk 0:00:07.2]} 49. Rh8 {[%clk 0:00:06.6]} 49... h4
{[%clk 0:00:06.7]} 50. Rh5+ {[%clk 0:00:06.4]} 50... Ke4 {[%clk 0:00:07.1]} 51.
Re1+ {[%clk 0:00:05.7]} 51... Kf4 {[%clk 0:00:07.6]} 52. Rh6 {[%clk 0:00:05.2]}
52... Rb2+ {[%clk 0:00:07.7]} 53. Kf1 {[%clk 0:00:05.6]} 53... f5 {[%clk
0:00:07.9]} 54. Rd6 {[%clk 0:00:04.7]} 54... Kg3 {[%clk 0:00:07.8]} 55. Rd1
{[%clk 0:00:03.3]} 55... Kh2 {[%clk 0:00:07.6]} 56. Rh6 {[%clk 0:00:02.2]} 56...
Rg1# {[%clk 0:00:07.7]} 0-1

[Event "Early-Titled-Tuesday-Blitz-September-05-2023"]
[Site "Chess.com"]
[Date "2023.09.05"]
[Round "4"]
[White "only_strong_moves"]
[Black "Dmitry_Konenkin"]
[Result "1-0"]
[WhiteElo "2525"]
[BlackElo "2393"]
[TimeControl "180+1"]
[EndTime "8:38:33 PDT"]
[Termination "only_strong_moves won by resignation"]

1. d4 {[%clk 0:02:59.5]} 1... d6 {[%clk 0:03:00.2]} 2. e4 {[%clk 0:02:59]} 2...
Nf6 {[%clk 0:02:59.9]} 3. Nc3 {[%clk 0:02:59.8]} 3... e5 {[%clk 0:02:59.3]} 4.
Nf3 {[%clk 0:02:55.3]} 4... Nbd7 {[%clk 0:02:59.1]} 5. Bc4 {[%clk 0:02:53.5]}
5... Be7 {[%clk 0:02:59.2]} 6. O-O {[%clk 0:02:53.1]} 6... O-O {[%clk
0:02:57.5]} 7. Re1 {[%clk 0:02:32.3]} 7... c6 {[%clk 0:02:57.2]} 8. a4 {[%clk
0:02:31.5]} 8... b6 {[%clk 0:02:56.9]} 9. Bf1 {[%clk 0:02:20.7]} 9... a6 {[%clk
0:02:57]} 10. Bg5 {[%clk 0:02:12.4]} 10... Bb7 {[%clk 0:02:53.8]} 11. g3 {[%clk
0:01:55.1]} 11... Qc7 {[%clk 0:02:52.6]} 12. Bg2 {[%clk 0:01:54.9]} 12... b5
{[%clk 0:02:46.1]} 13. axb5 {[%clk 0:01:51.9]} 13... axb5 {[%clk 0:02:47]} 14.
Rxa8 {[%clk 0:01:42.3]} 14... Rxa8 {[%clk 0:02:47.9]} 15. dxe5 {[%clk
0:01:39.3]} 15... dxe5 {[%clk 0:02:48.8]} 16. Nh4 {[%clk 0:01:38.7]} 16... g6
{[%clk 0:02:42.8]} 17. Qe2 {[%clk 0:01:33.5]} 17... Nc5 {[%clk 0:02:33.1]} 18.
f4 {[%clk 0:01:25.3]} 18... Ne6 {[%clk 0:02:20.7]} 19. Bxf6 {[%clk 0:01:09.3]}
19... Bxf6 {[%clk 0:02:19.9]} 20. f5 {[%clk 0:01:07.6]} 20... Nd4 {[%clk
0:02:14.2]} 21. Qg4 {[%clk 0:00:55.8]} 21... Nxc2 {[%clk 0:02:04.5]} 22. Rf1
{[%clk 0:00:55.7]} 22... Ne3 {[%clk 0:02:04.2]} 23. Qf3 {[%clk 0:00:49.5]} 23...
Nxf1 {[%clk 0:02:04]} 24. fxg6 {[%clk 0:00:49.8]} 24... Bxh4 {[%clk 0:01:11.6]}
25. gxh7+ {[%clk 0:00:49.3]} 25... Kxh7 {[%clk 0:01:06.8]} 26. gxh4 {[%clk
0:00:44.8]} 26... Nd2 {[%clk 0:00:47]} 27. Qh5+ {[%clk 0:00:42.9]} 27... Kg7
{[%clk 0:00:47.1]} 28. Qg5+ {[%clk 0:00:43.1]} 28... Kh7 {[%clk 0:00:43.5]} 29.
Qxd2 {[%clk 0:00:40.8]} 29... Ra1+ {[%clk 0:00:39.2]} 30. Kf2 {[%clk 0:00:39.2]}
30... Qb6+ {[%clk 0:00:35.5]} 31. Kg3 {[%clk 0:00:38.9]} 31... Qd4 {[%clk
0:00:26.8]} 32. Qg5 {[%clk 0:00:28.9]} 32... Qd6 {[%clk 0:00:26.8]} 33. Qh5+
{[%clk 0:00:17.6]} 33... Kg7 {[%clk 0:00:26.4]} 34. Kf2 {[%clk 0:00:12.3]} 34...
Qd2+ {[%clk 0:00:24]} 35. Ne2 {[%clk 0:00:11.7]} 35... Qe1+ {[%clk 0:00:20.3]}
36. Ke3 {[%clk 0:00:10.9]} 36... Bc8 {[%clk 0:00:15.2]} 37. Qg5+ {[%clk
0:00:11.2]} 37... Kh7 {[%clk 0:00:13.6]} 38. Qh5+ {[%clk 0:00:11.2]} 38... Kg8
{[%clk 0:00:13.2]} 39. Qg5+ {[%clk 0:00:12.1]} 39... Kf8 {[%clk 0:00:10.3]} 40.
Qd8+ {[%clk 0:00:12.1]} 40... Kg7 {[%clk 0:00:10.9]} 41. Qxc8 {[%clk 0:00:11.9]}
41... Qxh4 {[%clk 0:00:10.6]} 42. Qf5 {[%clk 0:00:09.8]} 42... Re1 {[%clk
0:00:09.8]} 43. Bf3 {[%clk 0:00:09.5]} 43... Qxh2 {[%clk 0:00:09]} 44. Qg5+
{[%clk 0:00:09.3]} 44... Kf8 {[%clk 0:00:08.7]} 45. Qd8+ {[%clk 0:00:09.5]}
45... Kg7 {[%clk 0:00:09.5]} 46. Qg5+ {[%clk 0:00:10.4]} 46... Kh7 {[%clk
0:00:09.9]} 47. Kd2 {[%clk 0:00:08.3]} 47... Qh6 {[%clk 0:00:10]} 48. Qxh6+
{[%clk 0:00:08]} 48... Kxh6 {[%clk 0:00:10.4]} 49. Kxe1 {[%clk 0:00:08.9]} 49...
Kg5 {[%clk 0:00:11.2]} 50. Kf2 {[%clk 0:00:09]} 50... f5 {[%clk 0:00:12.1]} 51.
exf5 {[%clk 0:00:09.2]} 51... Kxf5 {[%clk 0:00:13]} 52. Bxc6 {[%clk 0:00:09.6]}
52... b4 {[%clk 0:00:13]} 53. Ke3 {[%clk 0:00:09.1]} 53... Ke6 {[%clk
0:00:13.5]} 54. Be4 {[%clk 0:00:09.4]} 54... Kd6 {[%clk 0:00:14.4]} 55. Kd3
{[%clk 0:00:09.3]} 55... Kc5 {[%clk 0:00:15.3]} 56. b3 {[%clk 0:00:09.2]} 56...
Kb5 {[%clk 0:00:15.4]} 57. Ng3 {[%clk 0:00:08.9]} 57... Kc5 {[%clk 0:00:16.3]}
58. Nf5 {[%clk 0:00:09.2]} 58... Kb5 {[%clk 0:00:17.2]} 59. Ne7 {[%clk
0:00:08.6]} 59... Kc5 {[%clk 0:00:18.1]} 60. Ng6 {[%clk 0:00:09.1]} 60... Kd6
{[%clk 0:00:18.6]} 61. Kc4 {[%clk 0:00:09.8]} 61... Ke6 {[%clk 0:00:19.2]} 62.
Kxb4 {[%clk 0:00:10]} 62... Kf6 {[%clk 0:00:20.1]} 63. Kc5 {[%clk 0:00:10.2]}
63... Kg5 {[%clk 0:00:21]} 64. b4 {[%clk 0:00:10.6]} 64... Kg4 {[%clk
0:00:21.5]} 65. b5 {[%clk 0:00:11.3]} 1-0